fUST/lending_fUST_20250806
["ID","MTS","AMOUNT","RATE_DAILY","PERIOD"]
[377450821,1754415063151,-151.0,0.000304,7]
[377450823,1754415063161,-151.0,0.000304,7]
[377450825,1754415063170,-151.0,0.000304,7]
[377450826,1754415063179,-151.0,0.000304,7]
[377450829,1754415063189,-151.0,0.000304,7]
[377450830,1754415063198,-153.440057,0.000304,7]
[377450832,1754415063208,-151.0,0.000304,7]
[377450835,1754415063218,-151.0,0.000304,7]
[377450837,1754415063229,-240.408703,0.000304,7]
[377450839,1754415063239,-151.0,0.000304,7]
[377450841,1754415063248,-151.0,0.000304,7]
[377450843,1754415063257,-151.0,0.000304,7]
[377450844,1754415063267,-151.0,0.000304,7]
[377450846,1754415063276,-151.0,0.000304,7]
[377450848,1754415063285,-151.0,0.000304,7]
[377450850,1754415063295,-151.0,0.000304,7]
[377450852,1754415063304,-151.0,0.000304,7]
[377450854,1754415063313,-151.0,0.000304,7]
[377450856,1754415063323,-151.0,0.000304,7]
[377450858,1754415063332,-151.0,0.000304,7]
[377450860,1754415063342,-151.0,0.000304,7]
[377450862,1754415063351,-151.0,0.000304,7]
[377450864,1754415063360,-151.0,0.000304,7]
[377450875,1754415063445,-196.226432,0.000304,7]
[377450877,1754415063465,-151.0,0.000304,7]
[377450879,1754415063475,-151.0,0.000304,7]
[377450881,1754415063485,-151.0,0.000304,7]
[377450883,1754415063495,-151.0,0.000304,7]
[377450885,1754415063504,-151.0,0.000304,7]
[377450887,1754415063513,-151.0,0.000304,7]
[377450889,1754415063523,-151.0,0.000304,7]
[377450891,1754415063532,-185.394036,0.000304,7]
[377450893,1754415063541,-185.394036,0.000304,7]
[377450895,1754415063551,-185.394036,0.000304,7]
[377450897,1754415063561,-151.932771,0.000304,7]
[377450899,1754415063570,-185.394036,0.000304,7]
[377450902,1754415063581,-185.394036,0.000304,7]
[377450903,1754415063591,-185.394036,0.000304,7]
[377450905,1754415063601,-151.0,0.000304,7]
[377450907,1754415063611,-169.007359,0.000304,7]
[377450909,1754415063620,-151.0,0.000304,7]
[377450911,1754415063630,-151.0,0.000304,7]
[377450914,1754415063639,-151.0,0.000304,7]
[377450916,1754415063649,-151.0,0.000304,7]
[377450917,1754415063658,-151.0,0.000304,7]
[377450919,1754415063667,-151.0,0.000304,7]
[377450922,1754415063677,-151.0,0.000304,7]
[377450924,1754415063687,-151.0,0.000304,7]
[377450925,1754415063696,-151.0,0.000304,7]
[377450928,1754415063705,-151.0,0.000304,7]
[377450929,1754415063715,-151.0,0.000304,7]
[377450931,1754415063724,-151.0,0.000304,7]
[377450933,1754415063733,-151.0,0.000304,7]
[377450935,1754415063742,-151.0,0.000304,7]
[377450937,1754415063752,-152.621314,0.000304,7]
[377450939,1754415063761,-151.0,0.000304,7]
[377450941,1754415063770,-151.0,0.000304,7]
[377450943,1754415063779,-155.690815,0.000304,7]
[377450945,1754415063789,-155.690815,0.000304,7]
[377450947,1754415063798,-155.690815,0.000304,7]
[377450949,1754415063808,-155.690815,0.000304,7]
[377450951,1754415063817,-155.690815,0.000304,7]
[377450953,1754415063827,-155.690815,0.000304,7]
[377450955,1754415063837,-163.680142,0.000304,7]
[377450957,1754415063847,-163.680142,0.000304,7]
[377450959,1754415063856,-163.680142,0.000304,7]
[377450961,1754415063865,-151.0,0.000304,7]
[377450963,1754415063875,-151.0,0.000304,7]
[377450965,1754415063884,-163.680142,0.000304,7]
[377450967,1754415063894,-163.680142,0.000304,7]
[377450969,1754415063904,-163.680142,0.000304,7]
[377450971,1754415063914,-151.0,0.000304,7]
[377450973,1754415063925,-151.0,0.000304,7]
[377450975,1754415063935,-151.0,0.000304,7]
[377450977,1754415063944,-281.203196,0.000304,7]
[377450979,1754415063954,-151.0,0.000304,7]
[377450981,1754415063963,-155.950444,0.000304,7]
[377450983,1754415063973,-151.0,0.000304,7]
[377450985,1754415063983,-151.0,0.000304,7]
[377450987,1754415063999,-151.0,0.000304,7]
[377450989,1754415064011,-151.0,0.000304,7]
[377450990,1754415064021,-151.0,0.000304,7]
[377450993,1754415064034,-151.0,0.000304,7]
[377450995,1754415064043,-151.0,0.000304,7]
[377450997,1754415064053,-151.0,0.000304,7]
[377450998,1754415064063,-151.0,0.000304,7]
[377451000,1754415064072,-151.0,0.000304,7]
[377451002,1754415064083,-151.0,0.000304,7]
[377451004,1754415064093,-151.0,0.000304,7]
[377451006,1754415064106,-151.0,0.000304,7]
[377451008,1754415064116,-151.0,0.000304,7]
[377451010,1754415064126,-379.619623,0.000304,7]
[377451012,1754415064136,-151.0,0.000304,7]
[377451014,1754415064146,-379.619623,0.000304,7]
[377451017,1754415064162,-379.619623,0.000304,7]
[377451018,1754415064172,-151.0,0.000304,7]
[377451021,1754415064182,-379.619623,0.000304,7]
[377451023,1754415064191,-379.619623,0.000304,7]
[377451025,1754415064202,-379.619623,0.000304,7]
[377451027,1754415064212,-151.0,0.000304,7]
[377451029,1754415064222,-151.0,0.000304,7]
[377451030,1754415064231,-151.0,0.000304,7]
[377451033,1754415064242,-151.0,0.000304,7]
[377451035,1754415064252,-166.901726,0.000304,7]
[377451037,1754415064262,-151.0,0.000304,7]
[377451039,1754415064272,-151.0,0.000304,7]
[377451041,1754415064282,-151.0,0.000304,7]
[377451043,1754415064292,-151.0,0.00030401,7]
[377451045,1754415064301,-151.0,0.00030401,7]
[377451047,1754415064310,-218.096744,0.00030401,7]
[377451049,1754415064320,-571.67,0.0003041,2]
[377451050,1754415064331,-460.0,0.0003041,2]
[377451052,1754415064341,-460.0,0.0003041,2]
[377451054,1754415064349,-986.09,0.0003041,2]
[377451056,1754415064358,-3352.64,0.0003041,2]
[377451058,1754415064367,-460.0,0.0003041,2]
[377451060,1754415064376,-565.26,0.0003041,2]
[377451062,1754415064386,-1270.03,0.0003041,2]
[377451064,1754415064395,-460.0,0.0003041,2]
[377451066,1754415064404,-1043.48,0.0003041,2]
[377451068,1754415064413,-669.24,0.0003041,2]
[377451070,1754415064422,-460.0,0.0003041,2]
[377451072,1754415064431,-661.32,0.0003041,2]
[377451074,1754415064440,-460.0,0.0003041,2]
[377451076,1754415064450,-460.0,0.0003041,2]
[377451078,1754415064460,-846.11,0.0003041,2]
[377451080,1754415064468,-3818.35,0.0003041,2]
[377451081,1754415064477,-2389.53,0.0003041,2]
[377451082,1754415064486,-535.36,0.0003041,2]
[377451083,1754415064495,-56223.51,0.0003041,2]
[377451084,1754415064505,-574.59933092,0.0003041,2]
[377451085,1754415064514,-2020.1,0.0003041,2]
[377451086,1754415064523,-1687.27,0.0003041,2]
[377451087,1754415064532,-487.65,0.0003041,2]
[377451088,1754415064541,-495.8349297,0.0003041,2]
[377451089,1754415064550,-460.0,0.0003041,2]
[377451090,1754415064559,-460.0,0.0003041,2]
[377451091,1754415064568,-646.27,0.0003041,2]
[377451092,1754415064577,-1122.11,0.0003041,2]
[377451093,1754415064588,-928.38,0.0003041,2]
[377451094,1754415064597,-1784.15,0.0003041,2]
[377451096,1754415064607,-1060.85,0.0003041,2]
[377451098,1754415064616,-701.38,0.0003041,2]
[377451099,1754415064625,-525.29,0.0003041,2]
[377451101,1754415064635,-460.0,0.0003041,2]
[377451103,1754415064645,-2833.3,0.0003041,2]
[377451105,1754415064654,-460.0,0.0003041,2]
[377451107,1754415064664,-460.0,0.0003041,2]
[377451109,1754415064673,-1926.76,0.0003041,2]
[377451111,1754415064682,-460.0,0.0003041,2]
[377451113,1754415064691,-460.0,0.0003041,2]
[377451115,1754415064701,-1135.24,0.0003041,2]
[377451117,1754415064710,-1547.47,0.0003041,2]
[377451119,1754415064719,-460.0,0.0003041,2]
[377451121,1754415064729,-675.85,0.0003041,2]
[377451123,1754415064739,-460.0,0.0003041,2]
[377451125,1754415064748,-862.88,0.0003041,2]
[377451127,1754415064758,-462.3,0.0003041,2]
[377451129,1754415064767,-828.49,0.0003041,2]
[377451131,1754415064776,-460.0,0.0003041,2]
[377451133,1754415064785,-520.4886891,0.0003041,2]
[377451135,1754415064795,-486.92,0.0003041,2]
[377451137,1754415064804,-460.0,0.0003041,2]
[377451139,1754415064814,-827.63,0.0003041,2]
[377451141,1754415064824,-1381.82,0.0003041,2]
[377451144,1754415064835,-693.76,0.0003041,2]
[377451145,1754415064844,-676.55,0.0003041,2]
[377451147,1754415064854,-1179.1,0.0003041,2]
[377451149,1754415064863,-471.73,0.0003041,2]
[377451152,1754415064874,-460.0,0.0003041,2]
[377451153,1754415064884,-1188.0,0.0003041,2]
[377451155,1754415064893,-323.0,0.00030411,14]
[377451157,1754415064903,-151.0,0.00030411,7]
[377451159,1754415064914,-151.0,0.00030411,7]
[377451161,1754415064923,-151.0,0.00030411,7]
[377451164,1754415064933,-151.0,0.00030411,7]
[377451165,1754415064944,-151.0,0.00030411,7]
[377451168,1754415064954,-188.66273,0.00030411,7]
[377451169,1754415064964,-151.0,0.00030411,7]
[377451172,1754415064973,-176.036266,0.00030411,7]
[377451173,1754415064983,-185.394036,0.00030411,7]
[377451175,1754415064993,-185.394036,0.00030411,7]
[377451185,1754415065079,-185.394036,0.00030411,7]
[377451187,1754415065091,-185.394036,0.00030411,7]
[377451189,1754415065100,-151.0,0.00030411,7]
[377451191,1754415065114,-151.0,0.00030411,7]
[377451193,1754415065125,-151.0,0.00030411,7]
[377451195,1754415065135,-151.0,0.00030411,7]
[377451197,1754415065144,-151.0,0.00030411,7]
[377451199,1754415065154,-199.843786,0.00030411,7]
[377451201,1754415065163,-163.680142,0.00030411,7]
[377451203,1754415065172,-163.680142,0.00030411,7]
[377451205,1754415065182,-163.680142,0.00030411,7]
[377451207,1754415065191,-163.680142,0.00030411,7]
[377451209,1754415065200,-1500.0,0.00030411,28]
[377451211,1754415065209,-1500.0,0.00030411,28]
[377451213,1754415065218,-1500.0,0.00030411,28]
[377451215,1754415065227,-1500.0,0.00030411,28]
[377451217,1754415065236,-1500.0,0.00030411,28]
[377451219,1754415065245,-1500.0,0.00030411,28]
[377451221,1754415065254,-1500.0,0.00030411,28]
[377451223,1754415065263,-1500.0,0.00030411,28]
[377451225,1754415065272,-1500.0,0.00030411,28]
[377451227,1754415065281,-1500.0,0.00030411,28]
[377451229,1754415065291,-1500.0,0.00030411,28]
[377451232,1754415065301,-1500.0,0.00030411,28]
[377451234,1754415065310,-1500.0,0.00030411,28]
[377451236,1754415065319,-1500.0,0.00030411,28]
[377451238,1754415065329,-1500.0,0.00030411,28]
[377451239,1754415065340,-1500.0,0.00030411,28]
[377451241,1754415065350,-1500.0,0.00030411,28]
[377451243,1754415065359,-1500.0,0.00030411,28]
[377451246,1754415065369,-1500.0,0.00030411,28]
[377451248,1754415065379,-1500.0,0.00030411,28]
[377451250,1754415065389,-1500.0,0.00030411,28]
[377451251,1754415065398,-1500.0,0.00030411,28]
[377451254,1754415065408,-1500.0,0.00030411,28]
[377451256,1754415065418,-1500.0,0.00030411,28]
[377451258,1754415065428,-1500.0,0.00030411,28]
[377451260,1754415065437,-1500.0,0.00030411,28]
[377451262,1754415065448,-1500.0,0.00030411,28]
[377451264,1754415065457,-1500.0,0.00030411,28]
[377451266,1754415065467,-1500.0,0.00030411,28]
[377451267,1754415065476,-1500.0,0.00030411,28]
[377451269,1754415065486,-1500.0,0.00030411,28]
[377451272,1754415065499,-1500.0,0.00030411,28]
[377451274,1754415065509,-1500.0,0.00030411,28]
[377451276,1754415065521,-1500.0,0.00030411,28]
[377451278,1754415065531,-1500.0,0.00030411,28]
[377451280,1754415065540,-1500.0,0.00030411,28]
[377451281,1754415065549,-1500.0,0.00030411,28]
[377451283,1754415065558,-1500.0,0.00030411,28]
[377451285,1754415065567,-1500.0,0.00030411,28]
[377451287,1754415065576,-1500.0,0.00030411,28]
[377451289,1754415065588,-1500.0,0.00030411,28]
[377451291,1754415065597,-1500.0,0.00030411,28]
[377451293,1754415065606,-1500.0,0.00030411,28]
[377451295,1754415065615,-1500.0,0.00030411,28]
[377451297,1754415065624,-1500.0,0.00030411,28]
[377451299,1754415065634,-1500.0,0.00030411,28]
[377451301,1754415065644,-1500.0,0.00030411,28]
[377451303,1754415065653,-1500.0,0.00030411,28]
[377451305,1754415065662,-1500.0,0.00030411,28]
[377451307,1754415065671,-1500.0,0.00030411,28]
[377451309,1754415065681,-1500.0,0.00030411,28]
[377451311,1754415065689,-1500.0,0.00030411,28]
[377451313,1754415065698,-1500.0,0.00030411,28]
[377451315,1754415065709,-1500.0,0.00030411,28]
[377451317,1754415065718,-1500.0,0.00030411,28]
[377451319,1754415065727,-1500.0,0.00030411,28]
[377451321,1754415065736,-1500.0,0.00030411,28]
[377451323,1754415065746,-1500.0,0.00030411,28]
[377451325,1754415065756,-1500.0,0.00030411,28]
[377451327,1754415065766,-1500.0,0.00030411,28]
[377451329,1754415065776,-1500.0,0.00030411,28]
[377451331,1754415065786,-1500.0,0.00030411,28]
[377451333,1754415065795,-1500.0,0.00030411,28]
[377451335,1754415065804,-1500.0,0.00030411,28]
[377451337,1754415065813,-1500.0,0.00030411,28]
[377451339,1754415065822,-1500.0,0.00030411,28]
[377451341,1754415065833,-1500.0,0.00030411,28]
[377451343,1754415065843,-1500.0,0.00030411,28]
[377451345,1754415065852,-1500.0,0.00030411,28]
[377451347,1754415065861,-1500.0,0.00030411,28]
[377451349,1754415065870,-1500.0,0.00030411,28]
[377451351,1754415065880,-554.148499,0.00030411,28]
[377451353,1754415065889,-151.0,0.00030413,7]
[377451355,1754415065898,-155.690815,0.00030424,7]
[377451357,1754415065907,-155.690815,0.00030424,7]
[377451359,1754415065917,-155.690815,0.00030424,7]
[377451361,1754415065927,-155.690815,0.00030424,7]
[377451364,1754415065937,-151.0,0.00030424,7]
[377451366,1754415065947,-190.689238,0.00030424,7]
[377451367,1754415065959,-151.0,0.00030424,7]
[377451370,1754415065970,-151.0,0.00030424,7]
[377451371,1754415065980,-151.0,0.00030424,7]
[377451373,1754415065991,-151.0,0.00030424,7]
[377451375,1754415066001,-379.619623,0.00030424,7]
[377451377,1754415066009,-379.619623,0.00030424,7]
[377451379,1754415066018,-379.619623,0.00030424,7]
[377451381,1754415066030,-379.619623,0.00030424,7]
[377451383,1754415066040,-600.26488844,0.00030426,5]
[377451385,1754415066049,-150.0,0.00030426,2]
[377451388,1754415066059,-322368.41494419,0.00030426,20]
[377451405,1754415066219,268.36827796,0.000263,2]
[377451408,1754415066242,331.63172204,0.000263,2]
[377451473,1754415066855,-111.4769785,0.00026357,2]
[377451483,1754415066942,4668.36827796,0.00026258,2]
[377451486,1754415066964,5000.0,0.00026258,2]
[377451489,1754415066986,5000.0,0.00026258,2]
[377451493,1754415067008,1282.21091356,0.00026258,2]
[377451511,1754415067175,-314.67447386,0.00026357,2]
[377451513,1754415067184,-413.63828705,0.00027397,2]
[377451527,1754415067309,3717.78908644,0.00026348,2]
[377451531,1754415067331,1282.21091356,0.00026348,2]
[377451537,1754415067381,-46.36171295,0.00027397,2]
[377451539,1754415067391,-460.0,0.00027397,2]
[377451541,1754415067401,-460.0,0.00027397,2]
[377451543,1754415067410,-460.0,0.00027397,2]
[377451545,1754415067420,-1269.55,0.00027397,2]
[377451547,1754415067429,-460.0,0.00027397,2]
[377451549,1754415067439,-464.88577586,0.00027397,2]
[377451551,1754415067449,-460.0,0.00027671,2]
[377451553,1754415067459,-465.15523537,0.00027671,2]
[377451555,1754415067469,-465.59172773,0.00027671,2]
[377451557,1754415067478,-460.0,0.00027671,2]
[377451559,1754415067488,-460.0,0.00027671,2]
[377451561,1754415067497,-1269.55,0.00027671,2]
[377451563,1754415067507,-460.0,0.00027945,2]
[377451565,1754415067516,-460.0,0.00027945,2]
[377451567,1754415067525,-460.0,0.00027945,2]
[377451569,1754415067534,-460.0,0.00027945,2]
[377451571,1754415067543,-418.99586958,0.00027945,2]
[377451574,1754415067560,-4893.60308951,0.00027737,2]
[377451590,1754415067701,-1191.75936035,0.00027737,2]
[377451631,1754415068069,350.39787277,0.0002547,2]
[377451637,1754415068130,175.19893638,0.00025558,2]
[377451793,1754415069785,600.0,0.000263,2]
[377451920,1754415071397,181.22591477,0.000253,2]
[377451949,1754415071681,2410.96636252,0.00026059,2]
[377451953,1754415071703,5000.0,0.00026059,2]
[377451956,1754415071726,5000.0,0.00026059,2]
[377451959,1754415071748,1213.03849778,0.00026059,2]
[377452091,1754415075691,3786.96150222,0.00026348,2]
[377452092,1754415075715,1213.03849778,0.00026348,2]
[377452101,1754415090806,215.85310535,0.00025205,30]
[377452102,1754415091979,3786.96150222,0.00026348,2]
[377452103,1754415092002,1213.03849778,0.00026348,2]
[377452104,1754415095844,3786.96150222,0.00026258,3]
[377452105,1754415095867,5000.0,0.00026258,3]
[377452106,1754415095891,5000.0,0.00026258,3]
[377452107,1754415095918,5000.0,0.00026258,3]
[377452108,1754415095943,436.92635133,0.00026258,3]
[377452110,1754415099848,737.53,0.000263,2]
[377452111,1754415107889,3825.54364867,0.00026348,2]
[377452112,1754415107913,1174.45635133,0.00026348,2]
[377452113,1754415124106,3825.54364867,0.00026348,2]
[377452114,1754415124133,1174.45635133,0.00026348,2]
[377452115,1754415139090,3825.54364867,0.00026348,2]
[377452116,1754415139113,1174.45635133,0.00026348,2]
[377452117,1754415145725,3825.54364867,0.00026042,2]
[377452118,1754415145747,5000.0,0.00026042,2]
[377452119,1754415145770,5000.0,0.00026042,2]
[377452120,1754415145791,5000.0,0.00026042,2]
[377452121,1754415145814,4742.62377123,0.00026042,2]
[377452122,1754415152266,-516.68775025,0.00026356,2]
[377452123,1754415152286,-243.04398856,0.00026373,2]
[377452124,1754415152307,-432.26826119,0.00026373,2]
[377452125,1754415155102,257.37622877,0.00026348,2]
[377452126,1754415155127,4742.62377123,0.00026348,2]
[377452127,1754415166224,257.37622877,0.00026247,2]
[377452128,1754415166248,5000.0,0.00026247,2]
[377452129,1754415166271,5000.0,0.00026247,2]
[377452130,1754415166294,5000.0,0.00026247,2]
[377452131,1754415166316,5000.0,0.00026247,2]
[377452132,1754415166337,5000.0,0.00026247,2]
[377452133,1754415166358,5000.0,0.00026247,2]
[377452134,1754415166380,5000.0,0.00026247,2]
[377452135,1754415166402,5000.0,0.00026247,2]
[377452136,1754415166425,5000.0,0.00026247,2]
[377452137,1754415166448,5000.0,0.00026247,2]
[377452138,1754415166645,5000.0,0.00026247,2]
[377452139,1754415166667,5000.0,0.00026247,2]
[377452140,1754415166687,5000.0,0.00026247,2]
[377452141,1754415166709,5000.0,0.00026247,2]
[377452142,1754415166732,5000.0,0.00026247,2]
[377452143,1754415166753,5000.0,0.00026247,2]
[377452144,1754415166775,5000.0,0.00026247,2]
[377452145,1754415171376,447.73905067,0.00025205,14]
[377452146,1754415171400,759.68847313,0.00025205,14]
[377452147,1754415171425,377.66831926,0.00025205,14]
[377452148,1754415171449,292.9155566,0.00025205,14]
[377452149,1754415171472,206.28856532,0.00025205,14]
[377452150,1754415171495,371.46831926,0.00025205,14]
[377452151,1754415180148,5000.0,0.00023816,2]
[377452152,1754415180301,3957.89146604,0.00019483,2]
[377452153,1754415194050,150.0,0.00024041,2]
[377452154,1754415204971,-2455.76828424,0.00025205,14]
[377452155,1754415205115,-88.46343152,0.00025205,14]
[377452156,1754415205147,-300.0,0.00026246,2]
[377452157,1754415215879,4223.07313696,0.00026247,2]
[377452158,1754415215902,776.92686304,0.00026247,2]
[377452159,1754415216538,-159.12016755,0.00026247,2]
[377452160,1754415216678,3195.06648124,0.00026237,2]
[377452161,1754415227261,1028.00665572,0.00026237,2]
[377452162,1754415227283,4939.86564992,0.00026237,2]
[377452163,1754415232198,60.13435008,0.00026247,2]
[377452164,1754415232221,4939.86564992,0.00026247,2]
[377452165,1754415244311,60.13435008,0.00026246,2]
[377452166,1754415244334,239.86564992,0.00026246,2]
[377452167,1754415247092,4760.13435008,0.00026247,2]
[377452168,1754415247115,239.86564992,0.00026247,2]
[377452169,1754415262978,4760.13435008,0.00026247,2]
[377452170,1754415263004,239.86564992,0.00026247,2]
[377452171,1754415271767,1404.4116114,0.00025985,2]
[377452172,1754415272893,298.30601666,0.00026246,2]
[377452173,1754415273696,161.32437421,0.00026246,2]
[377452174,1754415273728,622.62629949,0.00026246,2]
[377452175,1754415280797,2273.46604832,0.00026247,2]
[377452176,1754415280821,2726.53395168,0.00026247,2]
[377452177,1754415296207,2273.46604832,0.00026247,2]
[377452178,1754415296230,2726.53395168,0.00026247,2]
[377452179,1754415302233,300.0,0.00026246,2]
[377452180,1754415302260,1200.0,0.00026246,2]
[377452181,1754415302389,185.613,0.00025205,9]
[377452182,1754415302788,300.0,0.00026246,2]
[377452183,1754415303271,215.0,0.00026246,2]
[377452184,1754415304856,72.85304832,0.00025205,7]
[377452185,1754415304879,87.14695168,0.00025205,7]
[377452186,1754415309709,405.39473352,0.00026246,2]
[377452187,1754415312421,4507.4583148,0.00026247,2]
[377452188,1754415312446,492.5416852,0.00026247,2]
[377452189,1754415319699,500.0,0.00026246,2]
[377452190,1754415323340,500.0,0.00026246,2]
[377452191,1754415323372,500.0,0.00026246,2]
[377452192,1754415323398,500.0,0.00026246,2]
[377452193,1754415323426,500.0,0.00026246,2]
[377452194,1754415323456,502.65015297,0.00026246,2]
[377452195,1754415323484,500.0,0.00026246,2]
[377452196,1754415323514,500.0,0.00026246,2]
[377452197,1754415323540,500.0,0.00026246,2]
[377452198,1754415323573,4.80816183,0.00026246,2]
[377452199,1754415323595,495.19183817,0.00026246,2]
[377452200,1754415323623,500.0,0.00026246,2]
[377452201,1754415323653,500.0,0.00026246,2]
[377452202,1754415323679,500.0,0.00026246,2]
[377452203,1754415323711,500.0,0.00026246,2]
[377452204,1754415323738,435.13628418,0.00026246,2]
[377452205,1754415323767,300.0,0.00026246,2]
[377452206,1754415328061,167.187543,0.00026163,2]
[377452207,1754415328558,167.187543,0.00026163,120]
[377452208,1754415328706,1602.48433465,0.00026247,2]
[377452209,1754415328729,3397.51566535,0.00026247,2]
[377452210,1754415344145,1602.48433465,0.00026247,2]
[377452211,1754415344167,3397.51566535,0.00026247,2]
[377452212,1754415354162,293.63739588,0.0002546,2]
[377452213,1754415361318,1308.84693877,0.00026247,2]
[377452214,1754415361341,3691.15306123,0.00026247,2]
[377452215,1754415363001,300.0,0.00026246,2]
[377452216,1754415370336,500.0,0.00026246,2]
[377452217,1754415370376,500.0,0.00026246,2]
[377452218,1754415370409,8.84693877,0.00026246,2]
[377452219,1754415370434,491.15306123,0.00026246,2]
[377452220,1754415370467,500.0,0.00026246,2]
[377452221,1754415370501,500.0,0.00026246,2]
[377452222,1754415370531,500.0,0.00026246,2]
[377452223,1754415370563,500.0,0.00026246,2]
[377452224,1754415370595,500.0,0.00026246,2]
[377452225,1754415370627,500.0,0.00026246,2]
[377452226,1754415370658,558.05304946,0.00026246,2]
[377452227,1754415370689,500.0,0.00026246,2]
[377452228,1754415370726,250.0,0.00026246,2]
[377452229,1754415370761,200.79388931,0.00026246,2]
[377452230,1754415370786,299.20611069,0.00026246,2]
[377452231,1754415370830,500.0,0.00026246,2]
[377452232,1754415370863,500.0,0.00026246,2]
[377452233,1754415370893,500.0,0.00026246,2]
[377452234,1754415370927,500.0,0.00026246,2]
[377452235,1754415370962,500.0,0.00026246,2]
[377452236,1754415370996,249.77205955,0.00026246,2]
[377452237,1754415371027,500.0,0.00026246,2]
[377452238,1754415371066,500.0,0.00026246,2]
[377452239,1754415371113,500.0,0.00026246,2]
[377452240,1754415371150,336.87901081,0.00026246,2]
[377452241,1754415379512,114.14281895,0.00026247,2]
[377452242,1754415379723,4885.85718105,0.00026247,2]
[377452243,1754415383003,114.14281895,0.00026246,2]
[377452244,1754415383028,385.85718105,0.00026246,2]
[377452245,1754415384738,500.0,0.00026246,2]
[377452246,1754415384783,500.0,0.00026246,2]
[377452247,1754415385133,500.0,0.00026246,2]
[377452248,1754415385164,500.0,0.00026246,2]
[377452249,1754415385193,500.0,0.00026246,2]
[377452250,1754415385221,550.0,0.00026246,2]
[377452251,1754415385249,500.0,0.00026246,2]
[377452252,1754415385286,500.0,0.00026246,2]
[377452253,1754415385351,500.0,0.00026246,2]
[377452254,1754415386219,64.14281895,0.00026246,2]
[377452255,1754415386244,435.85718105,0.00026246,2]
[377452256,1754415393872,208.81421166,0.00026246,2]
[377452257,1754415395091,500.0,0.00026246,2]
[377452258,1754415395127,305.53022884,0.00026246,2]
[377452259,1754415395155,173.1170055,0.00026246,2]
[377452260,1754415395195,576.31989009,0.00026246,2]
[377452261,1754415395227,159.45958713,0.00026246,2]
[377452262,1754415395406,2640.90189573,0.00026247,2]
[377452263,1754415395429,2359.09810427,0.00026247,2]
[377452264,1754415397605,1200.0,0.00026246,2]
[377452265,1754415403932,215.85310535,0.00025205,30]
[377452266,1754415408807,1440.90189573,0.00025319,2]
[377452267,1754415408831,5000.0,0.00025319,2]
[377452268,1754415408854,5000.0,0.00025319,2]
[377452269,1754415408879,5000.0,0.00025319,2]
[377452270,1754415409067,5000.0,0.00025319,2]
[377452271,1754415409091,3459.09810427,0.00025319,2]
[377452272,1754415413267,1540.90189573,0.00026247,2]
[377452273,1754415413291,3459.09810427,0.00026247,2]
[377452274,1754415429460,1540.90189573,0.00026247,2]
[377452275,1754415429497,3459.09810427,0.00026247,2]
[377452276,1754415431262,500.0,0.00026246,2]